[Event "German-ch Blitz Women 2022"]
[Site "Magdeburg"]
[Date "2022.08.13"]
[Round "22.6"]
[White "Falke, Ornella"]
[Black "Daemering, Katrin"]
[Result "1/2-1/2"]
[ECO "B50"]
[WhiteElo "1912"]
[BlackElo "1965"]
[Annotator "TA"]
[PlyCount "130"]
[EventDate "2022.08.10"]
[EventType "tourn"]
[EventCountry "GER"]
[SourceTitle "playchess.com"]
[Source "ChessBase"]
[SourceQuality "1"]
[TimeControl "180+2"]

{[%evp 11,130,14,23,0,14,0,0,0,12,11,31,0,0,11,12,-44,36,-35,32,-16,0,0,0,0,6,-29,-9,-165,-153,-157,-159,-162,-89,-70,0,-149,-157,-272,-278,-276,-233,-453,-333,-512,-397,-430,-268,-325,-308,-302,-93,-108,0,0,0,-89,521,-141,-139,-113,0,-25,-25,-385,5,6,116,129,652,631,664,664,726,698,883,854,950,547,758,739,976,114,29993,658,29992,584,29993,543,655,639,614,0,495,-29998,495,235,234,242,29983,671,671,664,566,552,29979,538,29980,29981,29981,29981,29981,29978,29976,8,8,8,8,8,8,8,8]} 1. e4 c5 2. Nf3 d6 3. g3 a6 4. Bg2 Nc6 5. d3 g6 6. O-O Bg7 7. Re1 {B28: Sicilian: 2 Nf3 a6 (O'Kelly Variation).} e6 8. Nbd2 {[%cal Oe4e5]} Nge7 9. c3 O-O 10. Nf1 {[#]} h6 $146 ({Predecessor:} 10... b5 11. h4 b4 12. d4 bxc3 13. bxc3 Rb8 14. N1h2 cxd4 15. cxd4 Bd7 16. Ba3 Nc8 {0-1 (38) Mikula,M (1567)-Goga,F (1885) Liptovsky Jan 2022}) 11. Be3 f5 12. Qd2 Kh7 13. Rad1 (13. exf5 $11 Nxf5 14. Qe2) 13... Rb8 (13... e5 $1 $15) 14. h4 (14. exf5 $14 Nxf5 15. d4) 14... b5 (14... e5 $1 $15) 15. N3h2 (15. exf5 $14 Nxf5 16. d4) 15... Bb7 16. d4 cxd4 17. cxd4 Na5 18. Bf4 fxe4 (18... Nc4 {looks sharper.} 19. Qe2 fxe4 20. b3 Nd5) 19. Bxd6 $2 Qxd6 $19 20. Qxa5 Bxd4 21. Ne3 Qc5 (21... Rxf2 22. Rxd4 Rxg2+ 23. Kxg2 $15) (21... Rbd8 $19 {[%cal Of8f2] ...Rxf2! is the strong threat.} 22. Re2 Rf7) 22. Rc1 $17 Qd6 (22... Qe5 $15 23. Nhg4 Qg7) 23. Qd2 (23. Rcd1 $1 $11) 23... Rbd8 $36 {[%mdl 2048] White is under strong pressure.} 24. Nhg4 (24. Nhf1 $17 {keeps fighting.}) 24... h5 $19 25. Nh2 Nf5 {[%cal Of5h4]} 26. Nxf5 $2 (26. Nhf1) 26... exf5 (26... gxf5 $2 27. Qg5 $19) 27. Qg5 (27. Kh1 $142) 27... Rd7 28. Nf1 Qb6 29. Ne3 Bf6 {A strong pair of Bishops.} 30. Qf4 a5 $2 (30... Bxb2 $2 31. Red1 Rxd1+ 32. Rxd1) (30... Qe6 $19 {Strongly threatening ...Be5.} 31. Rc5 Bxb2) 31. Red1 $17 Rfd8 (31... Rxd1+ $17 32. Rxd1 Kg7) 32. Rxd7+ $11 Rxd7 33. Bf1 (33. Nxf5 $1 $11 {was the only way to keep the balance.} Kg8 34. Ne3) 33... Qd4 $2 {[%mdl 8192]} (33... Kg7 $17 34. Rc2 Bd4) 34. Rc2 $2 (34. Rd1 $1 $18 {[%cal Rd1d4]} Qxd1 35. Nxd1) 34... Be5 $17 35. Qg5 Bf6 ({Black should play} 35... Bg7 $17 {Hoping for ...Rf7.} 36. Nxf5 (36. Bxb5 $2 Bh6 $19) 36... gxf5 37. Qxh5+ Kg8 38. Qxf5 (38. Qe8+ $2 Bf8 $19) 38... Qd1) 36. Qf4 $1 $11 b4 37. Qb8 $2 {[%mdl 8192]} (37. Rc7 $11 Rg7 38. Rxg7+ Bxg7 39. Qc7) 37... f4 $2 (37... Be5 $19 38. Qf8 Bxg3 $1 {[%mdl 512]} 39. fxg3 Qxe3+ 40. Kh2 Qd4) 38. Qxf4 Rf7 (38... Qe5 $11 {keeps the balance.}) 39. Rc7 $16 Rxc7 {[%mdl 8192]} (39... Rg7 $16) 40. Qxc7+ $18 Bg7 41. Qxb7 a4 42. Bb5 a3 43. bxa3 bxa3 44. Qd7 Qa1+ 45. Kg2 Qxa2 46. Bc4 $2 (46. g4 $18 {has better winning chances.} Qb2 47. Bc4) 46... Qd2 {[%mdl 8192]} 47. Qf7 (47. Qxd2 $142 a2 48. Bxa2 Bh8 49. Qd6 Bc3 50. Bf7 Kg7 51. Qxg6+ Kf8 52. Nf5 Bh8 53. Qg8#) 47... Qd6 48. Qg8+ Kh6 49. Ba2 (49. g4 $142 hxg4 50. Nxg4+ Kh5 51. Kh3 Qh2+ 52. Nxh2 Kh6 53. Ng4+ Kh5 54. Qxg7 g5 55. Qxg5#) 49... Qf6 50. Qd5 Qf3+ 51. Kf1 $2 ({White has to play} 51. Kg1 $18) 51... Bc3 $2 {[%mdl 8192]} (51... Qh1+ $11 52. Ke2 Qf3+ 53. Kf1 (53. Ke1 $2 Bc3+ $19) 53... Qh1+ 54. Ke2 Qf3+ 55. Kf1 (55. Ke1 {gets mated.} Bc3+)) 52. Qc4 $4 {[%mdl 8192]} (52. Kg1 $18) 52... Bg7 $4 {[%mdl 8192]} (52... Qh1+ {and life is good for Black.} 53. Ke2 Qe1#) 53. Qb3 (53. Kg1 $142) 53... Qh1+ 54. Ke2 {[%cal Oe3f5] White wants to mate with Nf5+!} Bb2 $2 {[#]} (54... Qf3+ $18 55. Ke1 Bb2) 55. Nc4 (55. Nf5+ $142 $1 {[%mdl 512]} gxf5 56. Qe6+ Kg7 57. Qg8+ Kh6 58. Qg5+ Kh7 59. Qxf5+ Kg7 60. Qf7+ Kh6 61. Qf8+ Bg7 62. Qf4+ Kh7 63. Qf5+ Kh6 64. Qg5+ Kh7 65. Qxh5+ Bh6 66. Qf5+ Kh8 67. Qc8+ Bf8 68. Qxf8+ Kh7 69. Bg8+ Kh8 70. Be6+ Kh7 71. Bf5#) 55... Qf3+ 56. Qxf3 exf3+ 57. Kxf3 Kg7 58. Ke2 (58. Nxb2 $142 Kf6 {[#]} 59. Kf4 $1 axb2 60. f3 Kg7 61. Kg5 Kf8 62. Kxg6 Ke7 63. Bb1) 58... Kf6 59. Nxb2 axb2 {KB-K3P} 60. Kd2 Kf5 61. Kc2 Kg4 62. Kxb2 $2 (62. Bd5 {mates} Kf5 63. Kxb2 Ke5 64. Bc6 Kf6 65. Kc3 Kg7 66. Kd4 Kf7 67. Ke5) 62... Kf3 $11 {The position is equal.} 63. Bf7 Kxf2 64. Bxg6 {Threatening mate with g4.} Kxg3 65. Bxh5 Kxh4 {Weighted Error Value: White=1.05/Black=1.22} 1/2-1/2

[Event "German-ch Blitz Women 2022"]
[Site "Magdeburg"]
[Date "2022.08.13"]
[Round "22.7"]
[White "Kosovska, Olena"]
[Black "Muetsch, Annmarie"]
[Result "0-1"]
[ECO "B07"]
[WhiteElo "1831"]
[BlackElo "2249"]
[Annotator "TA"]
[PlyCount "130"]
[EventDate "2022.08.10"]
[EventType "tourn"]
[EventCountry "GER"]
[SourceTitle "playchess.com"]
[Source "ChessBase"]
[SourceQuality "1"]
[TimeControl "180+2"]

{[%evp 15,129,12,8,-6,11,18,29,33,29,0,0,-25,-24,-28,-16,-25,6,15,12,10,35,36,70,0,0,0,58,43,89,47,50,-332,-339,-311,-315,-353,-341,-390,-380,-375,-365,-376,-394,-386,-393,-397,-300,-399,-395,-466,-467,-506,-514,-570,-507,-527,-527,-553,-546,-537,-455,-447,-438,-418,-427,-425,-406,-590,-554,-679,-670,-779,-762,-750,-749,-1006,-1004,-1400,-1349,-1157,-1276,-29962,-29967,-29982,-29983,-29982,-29983,-29983,-29984,-29986,-29984,-29984,-29985,-29985,-29986,-29986,-29985,-29985,-29986,-29988,-29989,-29990,-29991,-29991,-29992,-29992,-29992,-29992,-29993,-29994,-29993,-29996,-29994,-29997,-29998,-29999]} 1. e4 {[%emt 0:00:01]} d6 {[%emt 0:00:00]} 2. d4 {[%emt 0:00:01]} Nf6 {[%emt 0:00:01]} 3. Nc3 {[%emt 0:00:01]} e5 {[%emt 0:00:01]} 4. dxe5 {[%emt 0:00:03]} dxe5 {[%emt 0:00:01]} 5. Qxd8+ {[%emt 0:00:01]} Kxd8 {[%emt 0:00:01]} 6. Nf3 {[%emt 0:00:02]} Bd6 {[%emt 0:00:04]} 7. Bg5 {[%emt 0:00:03]} Be6 {[%emt 0:00:07]} 8. O-O-O {[%emt 0:00:05]} Nbd7 {[%emt 0:00:02][%cal Bb8d7,Bd7f6,Bf6g4][%mdl 32]} 9. Nd5 {[%emt 0:00:08] B07: Pirc Defence: Miscellaneous Systems.} Bxd5 {[%emt 0:00:06]} 10. exd5 {[%emt 0:00:06] [#]} Re8 $146 {[%emt 0:00:16][%cal Bh8e8,Be8e5,Be5h5][%mdl 32]} ({Predecessor:} 10... h6 11. Bh4 g5 12. Bg3 Nh5 13. Bd3 Ke7 14. Rhe1 f6 15. Nd4 Nc5 16. Bc4 Kf7 {1-0 (37) Kraai,J (2429)-Konenkin,D (2267) Chess.com INT 2020}) 11. Bb5 {[%emt 0:00:05] White has an edge.} e4 {[%emt 0:00:10]} 12. Nd4 {[%emt 0:00:03]} Re5 {[%emt 0:00:12][%csl LRd5,LRg5] Prevents Nf5.} 13. Bxf6+ {[%emt 0:00:45]} Nxf6 {[%emt 0:00:05]} 14. c4 {[%emt 0:00:04]} Ng4 {[%emt 0:00:14]} 15. Rd2 {[%emt 0:00:11]} Rh5 {[%emt 0:00:15] [#] Hoping for ...Bf4.} 16. Re2 {[%emt 0:00:20]} Nf6 {[%emt 0:00:40]} (16... Be5 {looks sharper.} 17. Rd1 e3 18. fxe3 a6) 17. h3 {[%emt 0:00:05]} a6 {[%emt 0:00:14]} 18. Ba4 {[%emt 0:00:01]} Be5 {[%emt 0:00:09]} 19. Nc2 {[%emt 0:00:11]} (19. Rd1 $14) 19... b5 $36 {[%emt 0:00:12][%mdl 2048] White is under pressure.} 20. Bb3 {[%emt 0:00:19]} Rb8 {[%emt 0:00:07]} (20... Ke7 $11) 21. Nb4 $1 $14 {[%emt 0:00:02] aiming for Nc6+.} Kc8 {[%emt 0:00:36]} (21... Ra8 $14 {is superior.}) 22. Nxa6 {[%emt 0:00:10]} (22. c5 {with more complications.} Kb7 23. Nc6 Bf4+ 24. Kb1) 22... Rb6 {[%emt 0:00:06]} 23. Nb4 {[%emt 0:00:02][%mdl 8192] [#] Loses the game.} (23. cxb5 $14 Rxb5 24. Bc4) 23... bxc4 $19 {[%emt 0:00:02]} 24. Bxc4 {[%emt 0:00:09]} Rxb4 {[%emt 0:00:01]} 25. Ba6+ {[%emt 0:00:01]} Kd7 {[%emt 0:00:01]} 26. b3 {[%emt 0:00:01]} Rb6 {[%emt 0:00:02]} 27. Bc4 {[%emt 0:00:01]} Kd6 {[%emt 0:00:02]} 28. Rd1 {[%emt 0:00:03]} Rg5 {[%emt 0:00:02]} 29. g3 {[%emt 0:00:01]} h5 {[%emt 0:00:02]} 30. Kc2 {[%emt 0:00:02]} h4 {[%emt 0:00:01]} 31. gxh4 {[%emt 0:00:04]} Rh5 {[%emt 0:00:01]} 32. Rg1 {[%emt 0:00:09]} g6 {[%emt 0:00:04]} 33. Re3 {[%emt 0:00:09]} Rxh4 {[%emt 0:00:02]} 34. Rge1 {[%emt 0:00:03]} Bf4 {[%emt 0:00:01]} 35. R3e2 {[%emt 0:00:02]} Rxh3 {[%emt 0:00:02]} 36. a4 {[%emt 0:00:03]} Rb7 {[%emt 0:00:05]} 37. a5 {[%emt 0:00:02]} Rh5 {[%emt 0:00:03]} 38. Rd1 {[%emt 0:00:02]} Re5 {[%emt 0:00:03]} 39. a6 {[%emt 0:00:01]} Ra7 {[%emt 0:00:00]} 40. b4 {[%emt 0:00:07]} Nd7 {[%emt 0:00:01]} 41. Rde1 {[%emt 0:00:05]} (41. Kb3 $142) 41... f5 {[%emt 0:00:03] Strongly threatening ...Nb6.} 42. Kb3 {[%emt 0:00:06]} Nb6 {[%emt 0:00:02]} 43. Ra1 {[%emt 0:00:09]} Nxc4 {[%emt 0:00:04]} 44. Kxc4 {[%emt 0:00:02]} Rxd5 {[%emt 0:00:01]} 45. b5 {[%emt 0:00:01]} Be5 {[%emt 0:00:02]} 46. Raa2 {[%emt 0:00:03]} Rd4+ {[%emt 0:00:02]} 47. Kb3 {[%emt 0:00:02]} Kc5 {[%emt 0:00:01]} 48. Rec2+ {[%emt 0:00:04]} Kxb5 {[%emt 0:00:02] Black mates.} 49. Rc1 {[%emt 0:00:13]} Rb4+ {[%emt 0:00:03]} 50. Kc2 {[%emt 0:00:02]} Rxa6 {[%emt 0:00:00]} 51. Rxa6 {[%emt 0:00:03]} Kxa6 {[%emt 0:00:01] KRB-KR} 52. Kd2 {[%emt 0:00:01]} Kb5 {[%emt 0:00:02]} 53. Ke3 {[%emt 0:00:01]} c5 {[%emt 0:00:01]} 54. Rd1 {[%emt 0:00:02]} Rb3+ {[%emt 0:00:01]} 55. Ke2 {[%emt 0:00:01]} Kc6 {[%emt 0:00:02]} 56. Rd8 {[%emt 0:00:03]} Bd4 {[%emt 0:00:03]} 57. Rg8 {[%emt 0:00:02]} Rb2+ {[%emt 0:00:02]} 58. Kd1 {[%emt 0:00:02]} Rxf2 {[%emt 0:00:02]} 59. Rxg6+ {[%emt 0:00:01]} Kd5 {[%emt 0:00:00]} 60. Rg8 {[%emt 0:00:03]} f4 {[%emt 0:00:01][%cal Bf5f4,Bf4f3][%mdl 32]} 61. Rd8+ {[%emt 0:00:01]} Kc4 {[%emt 0:00:01]} 62. Ke1 {[%emt 0:00:01]} Ra2 {[%emt 0:00:02]} 63. Rf8 {[%emt 0:00:02]} f3 {[%emt 0:00:01]} 64. Re8 {[%emt 0:00:02]} Kd3 {[%emt 0:00:01][%cal Ra2a1]} 65. Rd8 {[%emt 0:00:01]} Ra1# {[%emt 0:00:02] Weighted Error Value: White=0.59/Black=0.17 (very precise)} 0-1

[Event "German-ch Blitz Women 2022"]
[Site "Magdeburg"]
[Date "2022.08.13"]
[Round "22.8"]
[White "Leveikina, Jevgenija"]
[Black "Zhou, Lepu Coco"]
[Result "1-0"]
[ECO "D20"]
[WhiteElo "2061"]
[BlackElo "1986"]
[Annotator "NA RC"]
[PlyCount "79"]
[EventDate "2022.08.10"]
[EventType "tourn"]
[EventCountry "GER"]
[SourceTitle "playchess.com"]
[Source "ChessBase"]
[SourceQuality "1"]
[TimeControl "180+2"]

1. d4 {[%emt 0:00:01]} d5 {[%emt 0:00:01]} 2. c4 {[%emt 0:00:00]} dxc4 {[%emt 0:00:00]} 3. e3 {[%emt 0:00:01]} Nf6 {[%emt 0:00:02]} 4. Bxc4 e6 {[%emt 0:00:01]} 5. Nf3 {[%emt 0:00:02]} a6 {[%emt 0:00:00]} 6. Nc3 {[%emt 0:00:03]} b5 {[%emt 0:00:01]} 7. Be2 {[%emt 0:00:01]} Bb7 {[%emt 0:00:03]} 8. O-O {[%emt 0:00:02]} Nbd7 {[%emt 0:00:01]} 9. a3 {[%emt 0:00:01]} c5 {[%emt 0:00:01]} 10. dxc5 {[%emt 0:00:07]} Bxc5 {[%emt 0:00:02]} 11. b4 {[%emt 0:00:02]} Bb6 {[%emt 0:00:01]} 12. Bb2 {[%emt 0:00:01]} O-O {[%emt 0:00:02]} 13. Qb3 {[%emt 0:00:08]} Rc8 {[%emt 0:00:18]} 14. Rfd1 {[%emt 0:00:08]} Qc7 {[%emt 0:00:03]} 15. Rac1 {[%emt 0:00:03]} Qb8 {[%emt 0:00:01]} 16. a4 {[%emt 0:00:11]} bxa4 {[%emt 0:00:07]} 17. Nxa4 {[%emt 0:00:03]} Ba7 {[%emt 0:00:04]} 18. Nd4 {[%emt 0:00:37]} Bd5 {[%emt 0:00:05]} 19. Qa3 {[%emt 0:00:12]} Nb6 {[%emt 0:00:14]} 20. Bxa6 {[%emt 0:00:07]} Nc4 {[%emt 0:00:15]} 21. Qa1 {[%emt 0:00:10]} Nxb2 {[%emt 0:00:16]} 22. Qxb2 {[%emt 0:00:12]} Rxc1 {[%emt 0:00:07]} 23. Rxc1 {[%emt 0:00:01]} Ng4 {[%emt 0:00:17]} 24. g3 {[%emt 0:00:14]} Ne5 {[%emt 0:00:03]} 25. Be2 {[%emt 0:00:10]} Rc8 {[%emt 0:00:20]} 26. Rxc8+ {[%emt 0:00:11]} Qxc8 {[%emt 0:00:02]} 27. Nb5 {[%emt 0:00:02]} Bb8 {[%emt 0:00:35]} 28. Nb6 {[%emt 0:00:02]} Qb7 {[%emt 0:00:07]} 29. Nxd5 {[%emt 0:00:05]} Qxd5 {[%emt 0:00:02]} 30. Qd4 {[%emt 0:00:06]} Nc6 {[%emt 0:00:29]} 31. Qxd5 {[%emt 0:00:09]} exd5 {[%emt 0:00:02]} 32. Nc3 {[%emt 0:00:04]} Nxb4 {[%emt 0:00:03]} 33. Bf3 {[%emt 0:00:02]} f5 {[%emt 0:00:11]} 34. Bxd5+ {[%emt 0:00:02]} Nxd5 {[%emt 0:00:01]} 35. Nxd5 {[%emt 0:00:01]} Kf7 {[%emt 0:00:02]} 36. f3 {[%emt 0:00:10]} Ke6 {[%emt 0:00:05]} 37. Nb4 {[%emt 0:00:02]} g5 {[%emt 0:00:03]} 38. Kf2 {[%emt 0:00:07]} f4 {[%emt 0:00:05]} 39. e4 {[%emt 0:00:04]} Ba7+ {[%emt 0:00:02]} 40. Kg2 1-0

[Event "German-ch Blitz Women 2022"]
[Site "Magdeburg"]
[Date "2022.08.13"]
[Round "22.9"]
[White "Heil, Marina"]
[Black "Nikolaeva, Mariya A"]
[Result "0-1"]
[ECO "A16"]
[WhiteElo "1926"]
[BlackElo "1309"]
[Annotator "TA"]
[PlyCount "62"]
[EventDate "2022.08.10"]
[EventType "tourn"]
[EventCountry "GER"]
[SourceTitle "playchess.com"]
[Source "ChessBase"]
[SourceQuality "1"]
[TimeControl "180+2"]

{[%evp 14,62,42,25,58,39,86,82,84,69,81,27,18,2,-3,-21,-8,-18,16,-32,24,8,4,0,25,-25,0,-49,10,10,11,6,13,-33,47,0,0,-25,10,0,0,-14,-6,-394,-371,-376,-375,-327,-18,-14,155]} 1. c4 {[%emt 0:00:00]} Nf6 {[%emt 0:00:01]} 2. Nc3 {[%emt 0:00:01]} g6 {[%emt 0:00:00]} 3. d3 {[%emt 0:00:02]} Bg7 {[%emt 0:00:01]} 4. g3 {[%emt 0:00:00]} d6 {[%emt 0:00:01]} 5. Bg2 {[%emt 0:00:01]} e5 {[%emt 0:00:01]} 6. e4 {[%emt 0:00:05]} O-O {[%emt 0:00:01]} 7. Nge2 {[%emt 0:00:01]} Nbd7 {[%emt 0:00:02]} 8. O-O {[%emt 0:00:01]} Ne8 {[%emt 0:00:02] A24: English Opening vs King's Indian: Lines without ...Nc6.} 9. f4 {[%emt 0:00:03]} f5 {[%emt 0:00:07]} (9... a6 $14 {deserves consideration.}) 10. exf5 $16 {[%emt 0:00:11] [#]} gxf5 $146 {[%emt 0:00:05] White is better.} ({Predecessor:} 10... Rxf5 11. Be4 Rf8 12. fxe5 Rxf1+ 13. Qxf1 Nxe5 14. Bf4 c6 15. Kh1 Nc7 16. Bxe5 Bxe5 {½-½ (38) Tokranova,E (1243)-Morote,L (1347) Mamaia 2017}) 11. Nd5 {[%emt 0:00:08]} c6 {[%emt 0:00:04] [#]} 12. Ndc3 {[%emt 0:00:01]} (12. Ne3 $1 $16) 12... Ndf6 $11 {[%emt 0:00:14]} 13. fxe5 {[%emt 0:00:14]} dxe5 {[%emt 0:00:02]} 14. Bg5 {[%emt 0:00:01]} h6 {[%emt 0:00:02]} 15. Bh4 {[%emt 0:00:05]} Nc7 {[%emt 0:00:08]} (15... Qb6+ {keeps more tension.} 16. d4 Ng4 17. Qd2 Nd6) 16. Rb1 {[%emt 0:00:12]} (16. d4 $11) 16... a5 {[%emt 0:00:03]} (16... Qd6 $15) 17. Na4 {[%emt 0:00:11]} Be6 {[%emt 0:00:10]} 18. Nc5 {[%emt 0:00:04]} Bc8 {[%emt 0:00:10]} 19. a3 {[%emt 0:00:14]} (19. d4 $142) 19... Qe8 {[%emt 0:00:08]} 20. b4 {[%emt 0:00:11]} (20. Qd2 $11) 20... b6 {[%emt 0:00:03]} ({Black should try} 20... axb4 $15 21. axb4 Ne6) 21. Na4 {[%emt 0:00:07]} axb4 {[%emt 0:00:11]} 22. Nxb6 {[%emt 0:00:05]} (22. Rxb4 c5 23. Nxb6 cxb4 $15) 22... Rxa3 {[%emt 0:00:06][%cal Ba8a3,Ba3d3,Bd3d2][%mdl 32]} 23. Rxb4 {[%emt 0:00:06]} (23. Bxf6 $11 Rxf6 24. Nxc8 Qxc8 25. Rxb4) 23... Na6 {[%emt 0:00:10]} (23... Qe7 24. Rb1 $11) (23... Ng4 $15 24. Nxc8 Qxc8) 24. Rb1 {[%emt 0:00:07]} (24. Rb3 $1 $14 Rxb3 25. Qxb3) 24... Nc5 $36 {[%emt 0:00:05][%mdl 2048] Black is pushing.} 25. d4 {[%emt 0:00:13]} (25. Nxc8 $5 {[%cal Rc8d6]} Rxd3 26. Qc2 (26. Nd6 Qe6 $17) 26... Qxc8 27. Nc1 $15) 25... Rd3 {[%emt 0:00:17]} (25... exd4 $5 {[%cal Rf6g4]} 26. Nxc8 (26. Nxd4 $2 Rd3 $19) (26. Qxd4 Nfe4 $17) 26... Qxc8 $15) 26. Qc2 {[%emt 0:00:17]} exd4 {[%emt 0:00:06]} 27. Nf4 {[%emt 0:00:22]} Qe3+ {[%emt 0:00:12]} 28. Kh1 $2 {[%emt 0:00:12][%mdl 8192]} (28. Qf2 $11 {and White has nothing to worry.} Rd2 29. Qxe3 dxe3 30. Rfe1) 28... Rd2 $19 {[%emt 0:00:08]} 29. Qc1 {[%emt 0:00:12] [#] Black must now prevent Rf3.} Ng4 {[%emt 0:00:08]} 30. Qe1 {[%emt 0:00:21]} Nf2+ $2 {[%emt 0:00:15]} (30... Ne4 $19 31. Qxe3 Nxe3 32. Nxc8 Rxc8) 31. Rxf2 $1 $11 {[%emt 0:00:07]} Qxf2 $2 {[%emt 0:00:21][%mdl 32768] Weighted Error Value: White=0.47/Black=0.52. Loss on time!?} (31... Qxe1+ $11 32. Rxe1 Rxf2) 0-1

[Event "German-ch Blitz Women 2022"]
[Site "Magdeburg"]
[Date "2022.08.13"]
[Round "22.10"]
[White "Fock, Sana"]
[Black "Schulze, Lara"]
[Result "0-1"]
[ECO "B23"]
[WhiteElo "1807"]
[BlackElo "2292"]
[Annotator "TA"]
[PlyCount "54"]
[EventDate "2022.08.10"]
[EventType "tourn"]
[EventCountry "GER"]
[SourceTitle "playchess.com"]
[Source "ChessBase"]
[SourceQuality "1"]
[TimeControl "180+2"]

{[%evp 12,54,-8,-26,32,0,0,0,9,14,13,10,28,-8,10,10,8,15,14,1,31,0,18,0,8,9,25,14,15,-55,-76,-347,-336,-664,-675,-668,-644,-701,-708,-793,-800,-792,-790,-741,-721]} 1. e4 {[%emt 0:00:01]} c5 {[%emt 0:00:00]} 2. Nc3 {[%emt 0:00:01]} Nc6 {[%emt 0:00:02]} 3. f4 {[%emt 0:00:01]} g6 {[%emt 0:00:01]} 4. Nf3 {[%emt 0:00:01]} Bg7 {[%emt 0:00:01]} 5. Bb5 {[%emt 0:00:01]} Nd4 {[%emt 0:00:02]} 6. O-O {[%emt 0:00:02]} e6 {[%emt 0:00:04]} 7. e5 {[%emt 0:00:02]} Ne7 {[%emt 0:00:14] B23: Closed Sicilian: Lines without g3.} (7... a6 $11 8. Bd3 f5) 8. a4 {[%emt 0:00:21]} a6 {[%emt 0:00:05]} 9. Bd3 {[%emt 0:00:02]} d5 {[%emt 0:00:03] The position is equal.} 10. Nxd4 {[%emt 0:00:02]} cxd4 {[%emt 0:00:01]} 11. Ne2 {[%emt 0:00:02]} Nc6 {[%emt 0:00:02]} 12. c3 {[%emt 0:00:21]} O-O {[%emt 0:00:18]} 13. Qe1 {[%emt 0:00:06]} dxc3 {[%emt 0:00:09] [#]} 14. dxc3 $146 {[%emt 0:00:01]} ({Predecessor:} 14. bxc3 f6 15. exf6 Qxf6 16. Bc2 Bd7 17. d4 Na5 18. Rf3 Nc4 19. h4 b5 20. axb5 axb5 {1-0 (41) Zinn,L-Kozma,J Zinnowitz 1965}) 14... f6 {[%emt 0:00:06]} 15. exf6 {[%emt 0:00:26]} Bxf6 {[%emt 0:00:01]} 16. Kh1 {[%emt 0:00:09]} e5 {[%emt 0:00:11]} 17. fxe5 {[%emt 0:00:13]} Nxe5 {[%emt 0:00:02]} 18. Bc2 {[%emt 0:00:12]} Bd7 {[%emt 0:00:09]} 19. Bh6 {[%emt 0:00:09]} Rf7 {[%emt 0:00:09]} 20. Nd4 {[%emt 0:00:14]} (20. h3 $11) 20... Ng4 $15 {[%emt 0:00:14]} 21. Qd2 {[%emt 0:00:18][%mdl 8192] This costs White the game.} ({Of course not} 21. Bf4 Bxd4 22. cxd4 Qf8 $17) (21. Bd2 $17 {was necessary.}) 21... Nxh6 $19 {[%emt 0:00:06]} 22. Qxh6 $2 {[%emt 0:00:03]} (22. Bb3 Bg5 23. Qd3) 22... Bg5 {[%emt 0:00:10] This bishop pair is nice. Black is clearly winning.} 23. Rxf7 {[%emt 0:00:16][%csl Gf7][%cal Rh6h7] [#]} Bxh6 {[%emt 0:00:02]} 24. Raf1 {[%emt 0:00:04]} Qe8 {[%emt 0:00:16][%csl LRa4,LRf7]} 25. Bb3 {[%emt 0:00:07]} Qxf7 {[%emt 0:00:06]} 26. Rxf7 {[%emt 0:00:02]} Kxf7 {[%emt 0:00:01]} 27. Bxd5+ {[%emt 0:00:02]} Kf6 {[%emt 0:00:01] Weighted Error Value: White=0.62/Black=0.12 (very precise)} 0-1

[Event "German-ch Blitz Women 2022"]
[Site "Magdeburg"]
[Date "2022.08.13"]
[Round "22.11"]
[White "Schuster, Rebekka"]
[Black "Melamed, Tatjana"]
[Result "0-1"]
[ECO "B07"]
[WhiteElo "1815"]
[BlackElo "2380"]
[Annotator "TA"]
[PlyCount "22"]
[EventDate "2022.08.10"]
[EventType "tourn"]
[EventCountry "GER"]
[SourceTitle "playchess.com"]
[Source "ChessBase"]
[SourceQuality "1"]
[TimeControl "180+2"]

{[%evp 14,22,71,62,99,67,73,33,60,-298,-291]} 1. e4 {[%emt 0:00:00]} Nf6 {[%emt 0:00:01]} 2. Nc3 {[%emt 0:00:04]} d6 {[%emt 0:00:02]} 3. d4 {[%emt 0:00:01]} g6 {[%emt 0:00:01]} 4. f3 {[%emt 0:00:07]} Bg7 {[%emt 0:00:02]} 5. Be3 {[%emt 0:00:00]} O-O 6. Qd2 Nbd7 {[%emt 0:00:11]} 7. O-O-O {[%emt 0:00:03]} c6 {[%emt 0:00:02]} 8. h4 {[%emt 0:00:15]} Qa5 {[%emt 0:00:17] B07: Pirc Defence: Miscellaneous Systems.} 9. Kb1 {[%emt 0:00:03][%cal Oc3d5]} h5 {[%emt 0:00:14] [#]} 10. Be2 $146 {[%emt 0:00:23][%cal Oc3d5]} ({Predecessor:} 10. Nd5 Qd8 11. Nxf6+ exf6 12. g4 hxg4 13. h5 f5 14. Bg5 Bf6 15. Bxf6 Qxf6 16. hxg6 fxe4 {1-0 (31) Grott,P-Koehler,H DESC email 2009}) 10... b5 {[%emt 0:00:11][%cal Bb7b5,Bb5b4][%mdl 32] [#] Hoping for ...b4.} 11. g4 $2 {[%emt 0:00:10][%mdl 8192]} (11. Nd5 $1 $14 {stays ahead.} Qd8 12. Nxf6+ Nxf6 13. Bd3) 11... b4 {[%emt 0:00:02] White did not feel at home in the position after the opening.  Weighted Error Value: White=1.59/Black=0.18 (very precise)} 0-1